bitfinex-derivatives/quotes_ETHF0:USTF0_20260222
["timestamp","ask_amount","ask_price","bid_price","bid_amount"]
[1771765318624,6.76900374,1967.9,1966.8,0.79185061]
[1771765318820,40.8,1968.1,1966.8,0.79185061]
[1771765319021,6.77083646,1968.0,1966.8,0.79185061]
[1771765319219,6.77083646,1967.9,1966.8,0.79185061]
[1771765319516,0.49549009,1967.8,1966.8,0.79185061]
[1771765319721,45.0249797,1968.1,1966.8,0.79185061]
[1771765319918,6.77303967,1968.0,1966.8,0.79185061]
[1771765320223,6.77303967,1967.9,1966.8,0.79185061]
[1771765320419,0.495651,1967.8,1966.8,0.79185061]
[1771765320626,4.2249797,1968.1,1966.8,0.79185061]
[1771765320826,6.77507519,1968.0,1966.8,0.79185061]
[1771765321026,6.77507519,1967.9,1966.8,0.79185061]
[1771765321223,0.49579974,1967.8,1966.8,0.79185061]
[1771765321423,4.2249797,1968.1,1966.8,0.79185061]
[1771765321623,6.77791151,1968.0,1966.8,0.79185061]
[1771765321826,6.77791151,1967.9,1966.8,0.79185061]
[1771765322022,0.496007,1967.8,1966.8,0.79185061]
[1771765322222,4.2249797,1968.1,1966.8,0.79185061]
[1771765322425,6.78112799,1968.0,1966.8,0.79185061]
[1771765322626,6.78112799,1967.9,1966.8,0.79185061]
[1771765322824,6.78112799,1967.8,1966.8,0.79185061]
[1771765323022,4.2249797,1968.1,1966.8,0.79185061]
[1771765323224,11.01100176,1968.0,1966.8,0.79185061]
[1771765323420,6.78602206,1967.9,1966.8,0.79185061]
[1771765323624,6.78602206,1967.8,1966.8,0.79185061]
[1771765323927,0.49634112,1967.7,1966.8,0.79185061]
[1771765324126,4.2249797,1968.0,1966.8,0.79185061]
[1771765324325,0.4965994,1967.9,1966.8,0.79185061]
[1771765324526,6.79036631,1967.8,1966.8,0.79185061]
[1771765324727,0.4965994,1967.7,1966.8,0.79185061]
[1771765324927,4.2249797,1968.0,1966.8,0.79185061]
[1771765325228,0.49695533,1967.9,1966.8,0.79185061]
[1771765325527,6.79075685,1967.8,1966.8,0.79185061]
[1771765325728,0.49695533,1967.7,1966.8,0.79185061]
[1771765325928,4.2249797,1968.0,1966.8,0.79185061]
[1771765326128,0.4969094,1967.9,1966.8,0.79185061]
[1771765326428,6.79064912,1967.8,1966.8,0.79185061]
[1771765326628,0.4969094,1967.7,1966.8,0.79185061]
[1771765326828,4.2249797,1968.0,1966.8,0.79185061]
[1771765327028,0.49688448,1967.9,1966.8,0.79185061]
[1771765327326,6.79017256,1967.8,1966.8,0.79185061]
[1771765327527,0.49688448,1967.7,1966.8,0.79185061]
[1771765327727,4.2249797,1968.0,1966.8,0.79185061]
[1771765327930,0.4968633,1967.9,1966.8,0.79185061]
[1771765328126,6.79002237,1967.8,1966.8,0.79185061]
[1771765328321,45.0249797,1968.2,1966.8,0.79185061]
[1771765328528,6.7292657,1968.1,1966.8,0.79185061]
[1771765328727,6.7292657,1968.0,1966.8,0.79185061]
[1771765328928,6.7292657,1967.9,1966.8,0.79185061]
[1771765329129,0.49686196,1967.8,1966.8,0.79185061]
[1771765329429,45.0249797,1968.2,1966.8,0.79185061]
[1771765329628,6.7292886,1968.1,1966.8,0.79185061]
[1771765329830,6.7292886,1968.0,1966.8,0.79185061]
[1771765330029,6.7292886,1967.9,1966.8,0.79185061]
[1771765330231,0.49686434,1967.8,1966.8,0.79185061]
[1771765330530,45.0249797,1968.2,1966.8,0.79185061]
[1771765330730,6.72177564,1968.1,1966.8,0.79185061]
[1771765330931,6.72177564,1968.0,1966.8,0.79185061]
[1771765331127,6.72177564,1967.9,1966.8,0.79185061]
[1771765331327,0.49682082,1967.8,1966.8,0.79185061]
[1771765331527,45.0249797,1968.2,1966.8,0.79185061]
[1771765331830,6.72195762,1968.1,1966.8,0.79185061]
[1771765332030,6.72195762,1968.0,1966.8,0.79185061]
[1771765332225,6.72195762,1967.9,1966.8,0.79185061]
[1771765332430,6.72195762,1967.8,1966.8,0.79185061]
[1771765332628,45.0249797,1968.2,1966.8,0.79185061]
[1771765332829,6.7222651,1968.1,1966.8,0.79185061]
[1771765333027,6.7222651,1968.0,1966.8,0.79185061]
[1771765333227,6.7222651,1967.9,1966.8,0.79185061]
[1771765333429,6.7222651,1967.8,1966.8,0.79185061]
[1771765333628,45.0249797,1968.2,1966.8,0.79185061]
[1771765333833,6.72209092,1968.1,1966.8,0.79185061]
[1771765334028,6.72209092,1968.0,1966.8,0.79185061]
[1771765334228,6.72209092,1967.9,1966.8,0.79185061]
[1771765334428,6.72209092,1967.8,1966.8,0.79185061]
[1771765334628,45.0249797,1968.2,1966.8,0.79185061]
[1771765334930,5.34416,1967.8,1966.5,0.77330315]
[1771765335233,6.72266437,1967.7,1966.5,0.77330315]
[1771765335535,6.72266437,1967.6,1966.5,0.77330315]
[1771765335829,6.72266437,1967.5,1966.5,0.77330315]
[1771765336024,6.72108362,1967.4,1966.5,0.77330315]
[1771765336227,9.5691397,1967.8,1966.5,0.77330315]
[1771765336228,0.4968887,1967.3,1966.5,0.77330315]
[1771765336529,9.3149797,1967.7,1966.5,0.77330315]
[1771765336728,6.72060108,1967.6,1966.5,0.77330315]
[1771765336930,6.72060108,1967.5,1966.5,0.77330315]
[1771765337131,6.72060108,1967.4,1966.5,0.77330315]
[1771765337331,0.49674058,1967.3,1966.5,0.77330315]
[1771765337629,5.09,1967.7,1966.5,0.77330315]
[1771765337825,6.72003991,1967.6,1966.5,0.77330315]
[1771765338131,6.72003991,1967.5,1966.5,0.77330315]
[1771765338330,6.72003991,1967.4,1966.5,0.77330315]
[1771765338531,0.49669892,1967.3,1966.5,0.77330315]
[1771765338732,9.3149797,1967.7,1966.5,0.77330315]
[1771765338931,6.71937644,1967.6,1966.5,0.77330315]
[1771765339133,6.71937644,1967.5,1966.5,0.77330315]
[1771765339328,6.71937644,1967.4,1966.5,0.77330315]
[1771765339530,0.49664536,1967.3,1966.5,0.77330315]
[1771765339729,9.3149797,1967.7,1966.5,0.77330315]
[1771765339933,6.71955159,1967.6,1966.5,0.77330315]
[1771765340134,6.71955159,1967.5,1966.5,0.77330315]
[1771765340329,6.71955159,1967.4,1966.5,0.77330315]
[1771765340530,0.49665768,1967.3,1966.5,0.77330315]
[1771765340832,9.3149797,1967.7,1966.5,0.77330315]
[1771765341034,6.71851947,1967.6,1966.5,0.77330315]
[1771765341233,6.71851947,1967.5,1966.5,0.77330315]
[1771765341432,6.71851947,1967.4,1966.5,0.77330315]
[1771765341734,0.49658122,1967.3,1966.5,0.77330315]
[1771765341935,9.3149797,1967.7,1966.5,0.77330315]
[1771765342137,6.71739874,1967.6,1966.5,0.77330315]
[1771765342434,6.71739874,1967.5,1966.5,0.77330315]
[1771765342635,6.71739874,1967.4,1966.5,0.77330315]
[1771765342935,0.49649844,1967.3,1966.5,0.77330315]
[1771765343126,9.3149797,1967.7,1966.5,0.77330315]
[1771765343328,6.71551483,1967.6,1966.5,0.77330315]
[1771765343526,6.71551483,1967.5,1966.5,0.77330315]
[1771765343733,6.71551483,1967.4,1966.5,0.77330315]
[1771765343933,0.49638534,1967.3,1966.5,0.77330315]
[1771765344240,5.09,1967.7,1966.5,0.77330315]
[1771765344438,6.71454988,1967.6,1966.5,0.77330315]
[1771765344639,6.71454988,1967.5,1966.5,0.77330315]
[1771765344834,6.71454988,1967.4,1966.5,0.77330315]
[1771765345041,9.3149797,1967.7,1966.5,0.77330315]
[1771765345042,0.49628782,1967.3,1966.5,0.77330315]
[1771765345242,4.2249797,1967.6,1966.5,0.77330315]
[1771765345437,6.71377989,1967.5,1966.5,0.77330315]
[1771765345739,6.71377989,1967.4,1966.5,0.77330315]
[1771765345941,0.49623092,1967.3,1966.5,0.77330315]
[1771765346243,4.2249797,1967.6,1966.5,0.77330315]
[1771765346443,6.71313045,1967.5,1966.5,0.77330315]
[1771765346742,6.71313045,1967.4,1966.5,0.77330315]
[1771765346943,0.49621162,1967.3,1966.5,0.77330315]
[1771765347139,4.2249797,1967.6,1966.5,0.77330315]
[1771765347338,6.71274769,1967.5,1966.5,0.77330315]
[1771765347539,6.71274769,1967.4,1966.5,0.77330315]
[1771765347740,0.49616681,1967.3,1966.5,0.77330315]
[1771765348037,4.2249797,1967.6,1966.5,0.77330315]
[1771765348241,6.7125857,1967.5,1966.5,0.77330315]
[1771765348442,6.7125857,1967.4,1966.5,0.77330315]
[1771765348642,0.49615428,1967.3,1966.5,0.77330315]
[1771765348842,4.2249797,1967.6,1966.5,0.77330315]
[1771765349043,6.71249356,1967.5,1966.5,0.77330315]
[1771765349242,6.71249356,1967.4,1966.5,0.77330315]
[1771765349444,0.49613641,1967.3,1966.5,0.77330315]
[1771765349642,4.2249797,1967.6,1966.5,0.77330315]
[1771765349843,6.71242367,1967.5,1966.5,0.77330315]
[1771765350043,6.71242367,1967.4,1966.5,0.77330315]
[1771765350239,0.49612689,1967.3,1966.5,0.77330315]
[1771765350440,4.2249797,1967.6,1966.5,0.77330315]
[1771765350640,6.71243158,1967.5,1966.5,0.77330315]
[1771765350840,16.28163128,1967.4,1966.4,0.00378475]
[1771765351041,6.71243158,1967.3,1966.4,0.00378475]
[1771765351241,6.71243158,1967.2,1966.4,0.00378475]
[1771765351443,6.71243158,1967.1,1966.4,0.00378475]
[1771765351743,9.5691997,1967.4,1966.4,0.00378475]
[1771765351944,6.70983115,1967.3,1966.4,0.00378475]
[1771765352245,6.70983115,1967.2,1966.4,0.00378475]
[1771765352437,6.70983115,1967.1,1966.4,0.00378475]
[1771765352642,9.5691997,1967.4,1966.4,0.00378475]
[1771765352842,6.70898491,1967.3,1966.4,0.00378475]
[1771765353045,6.70898491,1967.2,1966.4,0.00378475]
[1771765353240,0.49585617,1967.1,1966.4,0.00378475]
[1771765353444,9.5691997,1967.4,1966.4,0.00378475]
[1771765353648,6.70762915,1967.3,1966.4,0.00378475]
[1771765353843,6.70762915,1967.2,1966.4,0.00378475]
[1771765354045,6.70762915,1967.1,1966.4,0.00378475]
[1771765354345,9.5691997,1967.4,1966.4,0.00378475]
[1771765354547,6.70689439,1967.3,1966.4,0.00378475]
[1771765354748,6.70689439,1967.2,1966.4,0.00378475]
[1771765354949,0.49572427,1967.1,1966.4,0.00378475]
[1771765355150,9.56349884,1967.4,1966.4,0.00378475]
[1771765355349,6.70716989,1967.3,1966.4,0.00378475]
[1771765355553,6.70716989,1967.2,1966.4,0.00378475]
[1771765355750,0.49571531,1967.1,1966.4,0.00378475]
[1771765355951,9.56349884,1967.4,1966.4,0.00378475]
[1771765356152,6.70669277,1967.3,1966.4,0.00378475]
[1771765356354,6.70669277,1967.2,1966.4,0.00378475]
[1771765356554,6.70669277,1967.1,1966.4,0.00378475]
[1771765356852,0.49571038,1967.0,1966.4,0.00378475]
[1771765357053,9.56349884,1967.4,1966.4,0.00378475]
[1771765357352,6.70615062,1967.3,1966.4,0.00378475]
[1771765357550,6.70615062,1967.2,1966.4,0.00378475]
[1771765357750,6.70615062,1967.1,1966.4,0.00378475]
[1771765357950,0.4956823,1967.0,1966.4,0.00378475]
[1771765358251,4.21927884,1967.3,1966.4,0.00378475]
[1771765358453,6.70568248,1967.2,1966.4,0.00378475]
[1771765358653,6.70568248,1967.1,1966.4,0.00378475]
[1771765358855,0.49563644,1967.0,1966.4,0.00378475]
[1771765359156,4.21927884,1967.3,1966.4,0.00378475]
[1771765359348,6.70649088,1967.2,1966.4,0.00378475]
[1771765359558,6.70649088,1967.1,1966.4,0.00378475]
[1771765359755,0.49569621,1967.0,1966.4,0.00378475]
[1771765359955,4.21927884,1967.3,1966.4,0.00378475]
[1771765360255,6.70588638,1967.2,1966.4,0.00378475]
[1771765360455,6.70588638,1967.1,1966.4,0.78856463]
[1771765360657,0.4956516,1967.0,1966.4,0.78856463]
[1771765360857,4.21927884,1967.3,1966.4,0.78856463]
[1771765361053,6.71376052,1967.2,1966.4,0.78856463]
[1771765361251,6.71376052,1967.1,1966.4,0.78856463]
[1771765361452,0.49557338,1967.0,1966.4,0.78856463]
[1771765361656,4.21927884,1967.3,1966.4,0.78856463]
[1771765361856,6.71530786,1967.2,1966.4,0.78856463]
[1771765362056,6.71530786,1967.1,1966.4,0.78856463]
[1771765362257,0.49568758,1967.0,1966.4,0.78856463]
[1771765362457,4.21927884,1967.3,1966.4,0.78856463]
[1771765362653,6.71730084,1967.2,1966.4,0.78856463]
[1771765362853,6.71730084,1967.1,1966.4,0.78856463]
[1771765363053,0.49583467,1967.0,1966.4,0.78856463]
[1771765363250,4.21927884,1967.3,1966.4,0.78856463]
[1771765363455,6.61553379,1967.2,1966.4,0.78856463]
[1771765363655,6.61553379,1967.1,1966.4,0.78856463]
[1771765363855,4.21927884,1967.3,1966.4,0.78856463]
[1771765363856,0.49600924,1967.0,1966.4,0.78856463]
[1771765364056,4.21927884,1967.3,1966.4,0.78856463]
[1771765364258,6.61415227,1967.2,1966.4,0.78856463]
[1771765364456,6.61415227,1967.1,1966.4,0.78856463]
[1771765364657,6.61415227,1967.0,1966.4,0.78856463]
[1771765364953,0.49614738,1966.9,1966.4,0.78856463]
[1771765365155,0.00446983,1966.9,1966.4,0.78856463]
[1771765368155,4.21927884,1967.5,1966.4,0.78856463]
[1771765368360,0.49630423,1967.4,1966.4,0.78856463]
[1771765368659,6.61890581,1967.3,1966.4,0.78856463]
[1771765368860,0.49630423,1967.2,1966.4,0.78856463]
[1771765369159,0.0063574,1967.2,1966.4,0.78856463]
[1771765381475,4.21927884,1967.8,1966.4,0.78856463]
[1771765381672,0.49614632,1967.7,1966.4,0.78856463]
[1771765381872,0.49614632,1967.6,1966.6,0.765525]
[1771765382073,0.25415,1967.9,1966.6,0.765525]
[1771765382273,6.61801685,1967.8,1966.8,0.765525]
[1771765382478,6.61801685,1967.7,1966.8,0.765525]
[1771765382776,0.49618455,1967.6,1966.8,0.765525]
[1771765382976,0.00615766,1967.8,1966.8,0.765525]
[1771765383273,6.62064448,1967.7,1966.8,0.765525]
[1771765383475,0.49637381,1967.6,1966.8,0.765525]
[1771765383677,0.00615766,1967.8,1966.8,0.765525]
[1771765383872,6.61896487,1967.7,1966.8,0.765525]
[1771765384173,0.49624316,1967.6,1966.8,0.765525]
[1771765384477,0.00615766,1967.8,1966.8,0.765525]
[1771765384776,6.61836437,1967.7,1966.8,0.765525]
[1771765385068,0.49619536,1967.6,1966.8,0.765525]
[1771765385374,0.00615766,1967.8,1966.8,0.765525]
[1771765385673,6.61750527,1967.7,1966.8,0.765525]
[1771765385868,0.49612806,1967.6,1966.8,0.765525]
[1771765386067,0.00615766,1967.8,1966.8,0.765525]
[1771765386276,6.6175039,1967.7,1966.8,0.765525]
[1771765386475,0.49612777,1967.6,1966.8,0.765525]
[1771765386672,0.00615766,1967.8,1966.8,0.765525]
[1771765386872,6.61880598,1967.7,1966.8,0.765525]
[1771765387075,0.49622255,1967.6,1966.8,0.765525]
[1771765387274,0.00615766,1967.8,1966.8,0.765525]
[1771765387572,6.61825988,1967.7,1966.8,0.765525]
[1771765387768,0.00615766,1967.8,1966.8,0.765525]
[1771765387973,6.61826065,1967.7,1966.8,0.765525]
[1771765388172,0.00615766,1967.8,1966.8,0.765525]
[1771765388475,6.61796792,1967.7,1966.8,0.765525]
[1771765388676,0.00615766,1967.8,1966.8,0.765525]
[1771765388977,6.61830582,1967.7,1966.8,0.765525]
[1771765389180,0.00615766,1967.8,1966.8,0.765525]
[1771765389476,6.61830063,1967.7,1966.8,0.765525]
[1771765389676,0.00615766,1967.8,1966.8,0.765525]
[1771765389876,6.61825822,1967.7,1966.8,0.765525]
[1771765390081,0.00615766,1967.8,1966.8,0.765525]
[1771765390279,6.61801841,1967.7,1966.8,0.765525]
[1771765390575,0.00615766,1967.8,1966.8,0.765525]
[1771765390772,6.61189971,1967.7,1966.8,0.765525]
[1771765390966,0.00615766,1967.8,1966.8,0.765525]
[1771765391167,6.61188239,1967.7,1966.8,0.765525]
[1771765391369,0.00615766,1967.8,1966.8,0.765525]
[1771765391572,6.61221198,1967.7,1966.8,0.765525]
[1771765391773,0.49616288,1967.6,1966.6,0.74770617]
[1771765391979,0.49602741,1967.5,1966.6,0.74770617]
[1771765392179,6.6103155,1967.4,1966.6,0.74770617]
[1771765392380,6.6103155,1967.3,1966.6,0.74770617]
[1771765392679,9.30927884,1967.6,1966.6,0.74770617]
[1771765392680,0.49602741,1967.2,1966.6,0.74770617]
[1771765392880,9.30927884,1967.6,1966.6,0.74770617]
[1771765393075,6.61058169,1967.5,1966.6,0.74770617]
[1771765393279,6.61058169,1967.4,1966.6,0.74770617]
[1771765393479,6.61058169,1967.3,1966.6,0.74770617]
[1771765393677,0.49607131,1967.2,1966.6,0.74770617]
[1771765393878,0.49607131,1967.1,1966.6,0.74770617]
[1771765394080,0.2542,1967.5,1966.6,0.74770617]
[1771765394381,6.61352331,1967.4,1966.6,0.74770617]
[1771765394579,6.61352331,1967.3,1966.6,0.74770617]
[1771765394773,6.61352331,1967.2,1966.6,0.74770617]
[1771765394976,0.49633426,1967.1,1966.6,0.74770617]
[1771765395180,0.2542,1967.5,1966.6,0.74770617]
[1771765395379,6.61481168,1967.4,1966.6,0.74770617]
[1771765395580,0.2542,1967.5,1966.6,0.74770617]
[1771765395581,6.61481168,1967.3,1966.6,0.74770617]
[1771765395776,0.49638551,1967.2,1966.6,0.74770617]
[1771765395981,0.2542,1967.5,1966.6,0.74770617]
[1771765396182,6.61485662,1967.4,1966.6,0.74770617]
[1771765396385,0.49638808,1967.3,1966.6,0.74770617]
[1771765396588,0.2542,1967.5,1966.6,0.74770617]
[1771765396880,6.61606951,1967.4,1966.6,0.74770617]
[1771765397086,0.49647607,1967.3,1966.6,0.74770617]
[1771765397283,0.2542,1967.5,1966.6,0.74770617]
[1771765397478,6.61734978,1967.4,1966.6,0.74770617]
[1771765397685,0.49656216,1967.3,1966.6,0.74770617]
[1771765397885,0.2542,1967.5,1966.6,0.74770617]
[1771765398186,6.61797957,1967.4,1966.6,0.74770617]
[1771765398386,0.49661505,1967.3,1966.6,0.74770617]
[1771765398584,0.49661505,1967.2,1966.6,0.74770617]
[1771765398784,0.2542,1967.5,1966.6,0.74770617]
[1771765398984,6.61787149,1967.4,1966.6,0.74770617]
[1771765399186,0.49667166,1967.3,1966.6,0.74770617]
[1771765399386,0.49667166,1967.2,1966.6,0.74770617]
[1771765399586,0.2542,1967.5,1966.6,0.74770617]
[1771765399886,6.61775846,1967.4,1966.6,0.74770617]
[1771765400083,0.49665812,1967.3,1966.6,0.74770617]
[1771765400277,0.2542,1967.5,1966.6,0.74770617]
[1771765400482,6.61779015,1967.4,1966.6,0.74770617]
[1771765400679,0.49666283,1967.3,1966.6,0.74770617]
[1771765400881,0.2542,1967.5,1966.6,0.74770617]
[1771765401080,6.61779072,1967.4,1966.6,0.74770617]
[1771765401292,0.49666287,1967.3,1966.6,0.74770617]
[1771765401486,0.2542,1967.5,1966.6,0.74770617]
[1771765401689,6.6177129,1967.4,1966.6,0.74770617]
[1771765401889,0.49665695,1967.3,1966.6,0.74770617]
[1771765402192,4.22727029,1967.6,1966.6,0.74770617]
[1771765402387,0.49666693,1967.5,1966.6,0.74770617]
[1771765402586,6.61785411,1967.4,1966.6,0.74770617]
[1771765402789,0.49666693,1967.3,1966.6,0.74770617]
[1771765402991,4.22727029,1967.6,1966.6,0.74770617]
[1771765403294,0.49666758,1967.5,1966.6,0.74770617]
[1771765403487,6.61786269,1967.4,1966.6,0.74770617]
[1771765403687,0.49666758,1967.3,1966.6,0.74770617]
[1771765403892,4.22727029,1967.7,1966.6,0.74770617]
[1771765404096,0.49667531,1967.6,1966.6,0.74770617]
[1771765404292,6.61796586,1967.5,1966.6,0.74770617]
[1771765404489,6.61796586,1967.4,1966.6,0.74770617]
[1771765404690,0.49667531,1967.3,1966.6,0.74770617]
[1771765404988,4.22727029,1967.7,1966.6,0.74770617]
[1771765405184,0.49669125,1967.6,1966.6,0.74770617]
[1771765405494,6.61817798,1967.5,1966.6,0.74770617]
[1771765405692,6.61817798,1967.4,1966.6,0.74770617]
[1771765405992,0.49669125,1967.3,1966.6,0.74770617]
[1771765406193,4.22727029,1967.7,1966.6,0.74770617]
[1771765406393,0.49669764,1967.6,1966.6,0.74770617]
[1771765406588,6.61826245,1967.5,1966.6,0.74770617]
[1771765406795,6.61826245,1967.4,1966.6,0.74770617]
[1771765406994,0.49669764,1967.3,1966.6,0.74770617]
[1771765407194,4.22727029,1967.7,1966.6,0.74770617]
[1771765407395,0.49669614,1967.6,1966.6,0.74770617]
[1771765407694,6.61824074,1967.5,1966.6,0.74770617]
[1771765407894,6.61824074,1967.4,1966.6,0.74770617]
[1771765408098,0.49669614,1967.3,1966.6,0.74770617]
[1771765408394,4.22727029,1967.7,1966.6,0.74770617]
[1771765408596,0.49669226,1967.6,1966.6,0.74770617]
[1771765408796,6.61821835,1967.5,1966.6,0.74770617]
[1771765409095,6.61821835,1967.4,1966.6,0.74770617]
[1771765409297,0.49669226,1967.3,1966.6,0.74770617]
[1771765409497,4.22727029,1967.7,1966.6,0.74770617]
[1771765409795,0.4967098,1967.6,1966.6,0.74770617]
[1771765409996,6.61845046,1967.5,1966.6,0.74770617]
[1771765410197,0.4967098,1967.4,1966.6,0.74770617]
[1771765410499,4.22727029,1967.7,1966.6,0.74770617]
[1771765410699,0.49674033,1967.6,1966.6,0.74770617]
[1771765410898,6.61883865,1967.5,1966.6,0.74770617]
[1771765411099,0.49674033,1967.4,1966.6,0.74770617]
[1771765411296,4.22727029,1967.7,1966.6,0.74770617]
[1771765411497,0.49673944,1967.6,1966.6,0.74770617]
[1771765411696,6.6188267,1967.5,1966.6,0.74770617]
[1771765411898,0.49673944,1967.4,1966.6,0.74770617]
[1771765412195,4.22727029,1967.7,1966.6,0.74770617]
[1771765412396,0.49688448,1967.6,1966.6,0.74770617]
[1771765412601,4.22727029,1967.7,1966.6,0.74770617]
[1771765412602,6.62085801,1967.5,1966.6,0.74770617]
[1771765412799,0.49688448,1967.4,1966.6,0.74770617]
[1771765413098,4.22727029,1967.7,1966.6,0.74770617]
[1771765413399,0.49700341,1967.6,1966.6,0.74770617]
[1771765413599,6.62233532,1967.5,1966.6,0.74770617]
[1771765413801,0.49700341,1967.4,1966.6,0.74770617]
[1771765414001,4.22727029,1967.7,1966.6,0.74770617]
[1771765414203,0.49700537,1967.6,1966.6,0.74770617]
[1771765414404,6.62236138,1967.5,1966.6,0.74770617]
[1771765414701,0.49700537,1967.4,1966.6,0.74770617]
[1771765414901,4.23342795,1967.8,1966.6,0.74770617]
[1771765415203,6.62345158,1967.7,1966.6,0.74770617]
[1771765415501,6.62345158,1967.6,1966.6,0.74770617]
[1771765415699,0.49708908,1967.5,1966.6,0.74770617]
[1771765415903,4.23342795,1967.8,1966.6,0.74770617]
[1771765416100,6.62391457,1967.7,1966.6,0.74770617]
[1771765416300,11.67902113,1968.0,1966.6,0.74770617]
[1771765416301,6.33488113,1968.1,1966.8,0.60766517]
[1771765416503,0.65448126,1968.3,1967.1,0.25425]
[1771765416800,0.65448126,1968.3,1967.3,0.01012354]
[1771765416996,0.65448126,1968.6,1967.5,0.01012354]
[1771765417403,0.65952553,1968.6,1967.5,0.01012354]
[1771765417704,0.65952553,1968.6,1967.7,0.01012354]
[1771765417907,0.65448126,1968.4,1967.7,0.01012354]
[1771765418601,0.64466344,1968.2,1967.7,0.01012354]
[1771765419008,0.66666167,1968.1,1966.8,10.91762774]
[1771765419508,0.66666167,1968.1,1967.0,6.64883564]
[1771765419802,0.66666167,1968.1,1966.8,0.25428]
[1771765420004,0.66666167,1968.1,1967.1,6.6627649]
[1771765420203,0.66666167,1968.1,1967.0,6.6627649]
[1771765420505,0.66666167,1968.1,1967.1,7.95722567]
[1771765420906,0.66666167,1968.1,1967.1,14.61999057]
[1771765421106,0.66666167,1968.1,1967.1,7.95722567]
[1771765421307,0.66666167,1968.1,1967.2,6.61384486]
[1771765421707,0.66666167,1968.1,1967.1,6.61384486]
[1771765421908,0.66666167,1968.1,1967.0,7.95722567]
[1771765422304,0.66666167,1968.1,1967.1,6.75323626]
[1771765425305,0.66002076,1968.5,1967.2,0.25424]
[1771765425504,0.66002076,1968.5,1967.2,8.21146567]
[1771765425706,0.66002076,1968.4,1967.3,6.70977024]
[1771765426306,0.66002076,1968.3,1967.3,13.06662709]
[1771765427912,0.66218694,1968.2,1967.3,13.06662709]
[1771765429113,0.66069654,1968.5,1967.3,13.06662709]
[1771765429313,0.66069654,1968.4,1967.3,13.06662709]
[1771765430413,0.00504427,1968.6,1967.4,0.25421]
[1771765430414,0.66069654,1968.5,1967.4,0.25421]
[1771765430612,0.66069654,1968.5,1967.4,6.61106685]
[1771765430812,0.00504427,1968.6,1967.5,13.08778723]
[1771765431008,0.00504427,1968.6,1967.6,6.35685685]
[1771765431211,0.00504427,1968.6,1967.6,0.25419]
[1771765431415,0.00504427,1968.6,1967.7,6.71735587]
[1771765431914,0.66193662,1968.6,1967.7,6.71735587]
[1771765433115,0.00504427,1968.6,1967.7,6.71735587]
[1771765434220,0.00504427,1968.6,1967.7,13.07421272]
[1771765435624,0.00504427,1968.6,1967.8,0.25416]
[1771765435821,0.00504427,1968.6,1967.8,0.25787692]
[1771765436123,0.00504427,1968.6,1967.9,6.4722749]
[1771765436620,2.27058193,1968.6,1967.9,6.4722749]
[1771765437424,0.00504427,1968.6,1967.9,6.4722749]
[1771765438220,0.96134238,1968.7,1968.0,0.25414]
[1771765438620,0.96134238,1968.7,1968.1,6.65406925]
[1771765438821,1e-08,1968.9,1968.2,0.55981275]
[1771765439225,0.00432448,1968.9,1968.4,0.55981275]
[1771765439523,0.62464994,1969.1,1968.4,0.55981275]
[1771765440326,2.26553766,1968.8,1968.4,0.55981275]
[1771765440529,0.62464994,1969.0,1968.4,0.55981275]
[1771765440825,0.62464994,1968.6,1968.2,0.55981275]
[1771765441517,0.62464994,1969.0,1968.2,0.55981275]
[1771765441724,2.8901876,1968.7,1968.2,0.55981275]
[1771765442328,2.26553766,1968.5,1968.2,0.55981275]
[1771765442627,0.62464994,1968.8,1968.2,0.55981275]
[1771765444223,0.62464994,1968.9,1968.2,0.55981275]
[1771765445328,0.62464994,1968.9,1968.3,0.55034469]
[1771765449519,0.62464994,1968.9,1968.2,6.35685685]
[1771765449727,0.62464994,1968.9,1968.2,6.91417075]
[1771765450029,0.62464994,1968.9,1968.3,0.5573139]
[1771765450732,0.62464994,1968.9,1968.2,0.55164878]
[1771765450928,0.62464994,1968.9,1968.1,0.55164878]
[1771765460130,0.48086442,1968.8,1968.1,0.55164878]
[1771765460333,0.57212895,1968.7,1968.1,0.55164878]
[1771765460933,0.57212895,1968.7,1967.8,0.00371692]
[1771765461133,0.57212895,1968.5,1967.5,0.58011148]
[1771765461334,0.57212895,1968.3,1967.5,0.58011148]
[1771765461630,0.57212895,1968.1,1967.5,0.58011148]
[1771765462127,0.57212895,1968.1,1967.5,0.58520009]
[1771765464537,0.57212895,1968.7,1967.5,0.58520009]
[1771765464838,0.57212895,1968.5,1967.5,0.58520009]
[1771765465032,0.57212895,1968.3,1967.5,0.58520009]
[1771765468039,0.57212895,1969.0,1967.7,0.58011148]
[1771765468233,0.57212895,1968.8,1967.7,0.58011148]
[1771765468639,0.57212895,1968.6,1967.7,0.58011148]
[1771765480343,0.55853875,1969.0,1967.9,0.58561373]
[1771765480544,0.55853875,1968.8,1967.9,0.58561373]
[1771765482539,0.55773981,1968.6,1967.9,0.58561373]
[1771765493253,0.55794379,1968.4,1967.8,0.58561373]
[1771765493456,0.55794379,1968.2,1967.6,0.58561373]
[1771765497958,0.55565795,1968.6,1967.6,0.58561373]
[1771765498158,0.55565795,1968.4,1967.6,0.58561373]
[1771765498359,1.03665734,1968.3,1967.6,0.58561373]
[1771765498659,0.55565795,1968.3,1967.6,0.58561373]
[1771765498856,0.55571291,1968.5,1967.6,0.58561373]
[1771765499157,0.55571291,1968.7,1967.6,0.58561373]
[1771765499347,4.48315947,1968.9,1967.7,0.58561373]
[1771765499348,1.03674784,1968.6,1967.7,0.58561373]
[1771765499548,0.48103493,1968.5,1967.7,0.58561373]
[1771765499952,0.55571291,1968.6,1967.7,0.58561373]
[1771765500558,0.55571291,1968.6,1967.9,0.58561373]
[1771765501458,0.55571291,1968.6,1967.7,8.56072514]
[1771765501760,0.55569289,1968.4,1967.7,0.58561373]
[1771765502357,0.55569289,1968.2,1967.7,0.58561373]
[1771765502552,0.55569289,1968.2,1967.5,0.59070234]
[1771765502956,0.55569289,1968.2,1967.5,0.00508861]
[1771765503758,0.56171539,1968.0,1967.2,8.56072514]
[1771765504055,0.56171539,1968.0,1967.2,0.58561373]
[1771765504956,6.58309975,1968.5,1967.2,0.58561373]
[1771765504957,0.56171539,1967.8,1967.2,0.58561373]
[1771765505162,0.56171539,1967.8,1967.2,0.59090806]
[1771765512371,0.56171539,1967.8,1967.2,0.00529433]
[1771765512971,0.56171539,1967.8,1967.2,0.58653542]
[1771765515368,0.48468217,1968.3,1967.2,0.58653542]
[1771765515578,0.48468217,1968.1,1967.2,0.58653542]
[1771765517070,5.085,1968.8,1967.4,0.54751613]
[1771765517274,6.58302975,1969.0,1967.5,0.54751613]
[1771765517275,0.482337,1968.5,1967.5,0.54751613]
[1771765517471,0.482337,1968.5,1967.6,0.54751613]
[1771765532597,0.51098408,1968.6,1967.6,0.54751613]
[1771765542201,0.50153935,1968.4,1967.6,0.54751613]
[1771765546204,0.50153935,1968.4,1967.7,0.55013254]
[1771765547906,0.48111928,1968.3,1967.7,0.55013254]
[1771765548201,9.31412947,1968.7,1967.6,7.97511141]
[1771765548202,0.49729227,1968.1,1967.6,0.55013254]
[1771765549108,0.49521039,1967.9,1967.2,0.00529433]